bitfinex/quotes_ETHUSD_20230111
["timestamp","ask_amount","ask_price","bid_price","bid_amount"]
[1673468712477,26.89928117,1343.1,1342.8,8.55566332]
[1673468712687,26.89928117,1343.1,1342.8,8.62266332]
[1673468712903,25.23277163,1343.1,1342.8,8.62266332]
[1673468713233,26.89928117,1343.1,1342.9,0.86226633]
[1673468713411,26.89928117,1343.1,1342.8,8.62266332]
[1673468713831,26.89928117,1343.1,1342.8,1.17561332]
[1673468714058,26.89928117,1343.1,1342.8,1.10861332]
[1673468714265,34.34474117,1343.1,1342.8,1.10861332]
[1673468714894,32.67823163,1343.1,1342.8,1.10861332]
[1673468715984,34.34474117,1343.1,1342.8,1.10861332]
[1673468717159,32.67823163,1343.1,1342.8,1.10861332]
[1673468717367,34.34474117,1343.1,1342.8,1.10861332]
[1673468718156,17.78731163,1343.1,1342.8,17.60974065]
[1673468718409,17.78731163,1343.1,1342.8,17.67674065]
[1673468718740,34.34474117,1343.1,1342.8,2.78267065]
[1673468718922,34.34474117,1343.1,1342.8,1.10861332]
[1673468719524,1.11532239,1343.0,1342.8,1.10861332]
[1673468719736,14.89314,1342.9,1342.8,1.10861332]
[1673468720262,7.44657,1342.9,1342.8,1.10861332]
[1673468720722,10.44657,1342.9,1342.8,1.10861332]
[1673468720954,13.52503055,1342.9,1342.8,1.10861332]
[1673468721165,28.41817055,1342.9,1342.8,1.10861332]
[1673468721494,22.63811009,1342.9,1342.8,1.10861332]
[1673468721687,20.97160055,1342.9,1342.8,1.10861332]
[1673468724229,28.41817055,1342.9,1342.8,1.10861332]
[1673468725220,30.2863577,1342.9,1342.8,1.10861332]
[1673468725432,36.21700613,1342.9,1342.8,1.10861332]
[1673468726695,41.97263788,1342.9,1342.8,1.10861332]
[1673468727076,41.97439444,1342.9,1342.8,1.10548761]
[1673468727232,39.75002281,1342.9,1342.8,1.10548761]
[1673468727798,50.24427492,1342.9,1342.8,1.10548761]
[1673468727949,50.24627492,1342.9,1342.8,1.10548761]
[1673468728158,46.53624156,1342.9,1342.8,1.10548761]
[1673468728796,43.75681309,1342.9,1342.8,1.10548761]
[1673468729213,46.53624156,1342.9,1342.8,1.10548761]
[1673468732388,40.75681309,1342.9,1342.8,1.10548761]
[1673468733206,43.53624156,1342.9,1342.8,1.10548761]
[1673468734578,43.53701327,1342.9,1342.8,1.10548761]
[1673468735462,41.31165009,1342.9,1342.8,1.10548761]
[1673468736411,41.26165009,1342.9,1342.8,1.10548761]
[1673468736575,43.48749887,1342.9,1342.8,1.10548761]
[1673468739704,41.26165009,1342.9,1342.8,1.10548761]
[1673468740054,44.96968345,1342.9,1342.8,1.10548761]
[1673468740471,41.26165009,1342.9,1342.8,1.10548761]
[1673468743137,32.99198945,1342.9,1342.8,1.10548761]
[1673468743349,34.65931615,1342.9,1342.8,1.10548761]
[1673468743929,33.34231615,1342.9,1342.8,1.10548761]
[1673468744186,32.25820333,1342.9,1342.8,1.10548761]
[1673468745836,24.81163333,1342.9,1342.8,1.10548761]
[1673468746029,29.47877486,1342.9,1342.8,1.10548761]
[1673468746907,27.5156367,1342.9,1342.8,1.10548761]
[1673468747125,27.5156367,1342.9,1342.8,8.55260761]
[1673468747126,2.7830375,1342.9,1342.8,8.55260761]
[1673468747445,2.84741671,1343.0,1342.8,16.06672761]
[1673468747611,2.7830375,1343.0,1342.8,8.61960761]
[1673468748019,2.7830375,1343.0,1342.8,1.17248761]
[1673468748239,10.2290775,1343.0,1342.8,1.96746137]
[1673468748500,1.11323366,1342.9,1342.8,1.96746137]
[1673468748766,1.11323366,1342.9,1342.8,3.63546137]
[1673468749022,2.7830375,1343.0,1342.8,11.08258137]
[1673468749232,2.7830375,1343.0,1342.8,11.14958137]
[1673468749741,1.11323366,1343.0,1342.8,11.14958137]
[1673468750161,1.11323366,1343.0,1342.8,18.59670137]
[1673468750335,2.7830375,1343.0,1342.8,18.59670137]
[1673468750813,1.11323366,1343.0,1342.8,18.59670137]
[1673468751178,1.11323366,1343.0,1342.9,1.85967014]
[1673468751845,2.7830375,1343.0,1342.9,1.85967014]
[1673468752012,2.7830375,1343.0,1342.9,9.30624014]
[1673468752236,2.7830375,1343.0,1342.9,1.92667014]
[1673468752453,1.66980384,1343.0,1342.9,1.85967014]
[1673468752680,2.78388606,1343.0,1342.9,9.30624014]
[1673468752854,1.11408222,1343.0,1342.9,16.81981014]
[1673468753068,1.11408222,1343.0,1342.9,1.92667014]
[1673468753382,2.78388606,1343.0,1342.9,1.85967014]
[1673468754450,1.11408222,1343.0,1342.9,1.85967014]
[1673468754695,2.78388606,1343.0,1342.9,1.85967014]
[1673468754973,2.78388606,1343.0,1342.9,9.30624014]
[1673468755187,1.11408222,1343.0,1342.9,9.37324014]
[1673468755343,1.11408222,1343.0,1342.9,16.81981014]
[1673468755764,1.28739067,1343.1,1342.9,33.43734777]
[1673468756018,0.10892924,1343.1,1343.0,6.67973478]
[1673468756232,0.10892924,1343.1,1343.0,6.74673478]
[1673468756806,0.10892924,1343.1,1343.0,3.403]
[1673468757022,0.10892924,1343.1,1343.0,3.336]
[1673468758196,0.10892924,1343.1,1343.0,3.33311463]
[1673468758443,0.10892924,1343.1,1343.0,10.77912463]
[1673468758752,0.10892924,1343.1,1343.0,3.40011463]
[1673468758965,0.10892924,1343.1,1343.0,6.47277217]
[1673468759123,16.11393146,1343.1,1343.0,3.34811463]
[1673468759349,8.66847146,1343.1,1343.0,3.33311463]
[1673468759542,8.66847146,1343.1,1342.9,1.92667014]
[1673468759543,8.66847146,1343.1,1342.9,3.58867014]
[1673468759791,8.66847146,1343.1,1342.9,3.52167014]
[1673468760169,1.22301146,1343.1,1342.9,3.52167014]
[1673468760385,1.22301146,1343.1,1342.9,18.41469014]
[1673468760638,1.22301146,1343.1,1342.9,18.48169014]
[1673468762376,8.67047146,1343.1,1342.9,3.58667014]
[1673468762541,8.67047146,1343.1,1342.9,3.52167014]
[1673468762542,10.3382753,1343.1,1342.9,3.52167014]
[1673468762757,8.66847146,1343.1,1342.9,3.52167014]
[1673468763343,17.7838153,1343.1,1342.8,20.48247376]
[1673468763563,17.7838153,1343.1,1342.8,8.0374]
[1673468763564,7.44657,1342.9,1342.8,8.0374]
[1673468763749,7.44657,1342.9,1342.8,0.067]
[1673468763996,7.44657,1342.9,1342.6,0.067]
[1673468764170,14.89314,1342.9,1342.5,25.04194]
[1673468764384,16.00722222,1342.9,1342.6,2.504194]
[1673468764628,23.45379222,1342.9,1342.6,2.504194]
[1673468764850,25.12359606,1342.9,1342.5,21.39116064]
[1673468765014,23.45379222,1342.9,1342.5,17.5935]
[1673468765456,16.00722222,1342.9,1342.5,17.5935]
[1673468765783,16.00722222,1342.9,1342.5,32.49057]
[1673468765784,8.56065222,1342.9,1342.5,32.49057]
[1673468766318,8.56065222,1342.9,1342.5,36.76197219]
[1673468766747,16.00722222,1342.9,1342.5,44.21075219]
[1673468766955,8.56065222,1342.9,1342.5,44.21075219]
[1673468767687,18.50722222,1342.9,1342.5,44.21075219]
[1673468767909,16.00722222,1342.9,1342.5,44.21075219]
[1673468768271,1.11408222,1342.9,1342.5,44.21075219]
[1673468768620,8.56067222,1342.9,1342.6,4.42107522]
[1673468768950,8.56067222,1342.9,1342.6,7.44804]
[1673468769173,16.00724222,1342.9,1342.6,7.51504]
[1673468769322,1.11408222,1342.9,1342.6,14.96327]
[1673468770087,8.56081222,1342.9,1342.6,14.96327]
[1673468770307,16.00754222,1342.9,1342.6,7.51504]
[1673468770687,23.45427222,1342.9,1342.6,0.067]
[1673468770955,16.00754222,1342.9,1342.6,7.44821]
[1673468771108,16.00754222,1342.9,1342.6,7.51521]
[1673468771319,17.67734606,1342.9,1342.6,7.51521]
[1673468771781,31.62935062,1342.9,1342.6,0.067]
[1673468771992,1.11408222,1342.8,1342.5,17.5935]
[1673468772215,1.11408222,1342.8,1342.5,7.9347]
[1673468772216,22.34304,1342.7,1342.5,7.9347]
[1673468772944,22.34304,1342.7,1342.5,0.067]
[1673468773100,22.34304,1342.7,1342.3,27.04997191]
[1673468773101,22.34304,1342.7,1342.3,27.11678191]
[1673468773313,24.69519014,1342.7,1342.4,1.84791931]
[1673468774782,9.79983014,1342.7,1342.4,1.84791931]
[1673468775043,0.62297921,1342.8,1342.4,15.06563122]
[1673468775215,8.01205,1342.8,1342.5,1.84791931]
[1673468775431,8.01205,1342.8,1342.4,36.09382634]
[1673468775432,0.5586,1342.8,1342.4,36.09382634]
[1673468775654,22.90012,1342.8,1342.4,28.64448634]
[1673468775852,24.01420222,1342.8,1342.4,24.79426435]
[1673468776674,24.01420222,1342.8,1342.4,32.24360435]
[1673468777903,16.56700222,1342.8,1342.4,32.24360435]
[1673468778240,16.56700222,1342.8,1342.4,39.69294435]
[1673468778446,9.11980222,1342.8,1342.4,39.69294435]
[1673468778761,9.11980222,1342.8,1342.4,38.03894435]
[1673468779338,16.56692222,1342.8,1342.4,30.58960435]
[1673468779548,16.56692222,1342.8,1342.4,31.91460435]
[1673468779810,16.56692222,1342.8,1342.4,40.47840626]
[1673468779975,0.5586,1342.8,1342.5,8.89563258]
[1673468780190,8.00596,1342.8,1342.5,6.88649442]
[1673468780399,8.00591,1342.8,1342.5,14.33521442]
[1673468780760,9.08207921,1342.9,1342.6,18.07309316]
[1673468780923,9.0177,1342.9,1342.7,4.80730932]
[1673468781155,16.46428,1342.9,1342.7,1.80730932]
[1673468781343,9.0177,1342.9,1342.7,9.25484932]
[1673468781583,9.0177,1342.9,1342.7,9.32184932]
[1673468782011,9.0177,1342.9,1342.7,1.87430932]
[1673468782183,16.46431,1342.9,1342.7,1.80730932]
[1673468782407,9.0177,1342.9,1342.7,9.25286807]
[1673468782759,16.46432,1342.9,1342.7,1.87228807]
[1673468782965,9.0177,1342.9,1342.7,4.80528807]
[1673468783278,10.13178222,1342.9,1342.7,1.80528807]
[1673468783496,10.13178222,1342.9,1342.7,4.30528807]
[1673468784196,10.13178222,1342.9,1342.7,11.75282807]
[1673468784542,25.02526222,1342.9,1342.7,1.87228807]
[1673468784858,25.02526222,1342.9,1342.7,1.80528807]
[1673468785907,24.46666222,1342.9,1342.7,1.80528807]
[1673468786370,24.46866222,1342.9,1342.7,1.80528807]
[1673468786603,24.46666222,1342.9,1342.7,1.80528807]
[1673468787258,17.01992222,1342.9,1342.7,1.80528807]
[1673468790420,8.4591,1342.9,1342.7,1.80528807]
[1673468790630,8.4591,1342.9,1342.7,9.25293807]
[1673468790841,9.57318222,1342.9,1342.7,9.31988807]
[1673468791053,8.4591,1342.9,1342.7,16.76756807]
[1673468791593,8.4591,1342.9,1342.7,24.21524807]
[1673468791808,8.4591,1342.9,1342.7,16.76756807]
[1673468792025,8.4591,1342.9,1342.7,24.21524807]
[1673468792495,11.24298606,1342.9,1342.7,24.21524807]
[1673468793045,11.24298606,1342.9,1342.7,16.76756807]
[1673468793262,11.24298606,1342.9,1342.7,1.87228807]
[1673468793473,8.4591,1342.9,1342.7,1.80528807]
[1673468793805,15.90575,1342.9,1342.7,1.80528807]
[1673468794424,8.4591,1342.9,1342.7,1.80528807]
[1673468794843,15.90575,1342.9,1342.7,1.80528807]
[1673468795196,33.58285606,1342.9,1342.6,0.07030099]
[1673468795402,37.29088942,1342.9,1342.6,0.052]
[1673468795621,1.11408222,1342.8,1342.5,10.64006191]
[1673468795788,23.45712222,1342.7,1342.5,0.067]
[1673468796133,23.45712222,1342.7,1342.4,8.1957]
[1673468796300,23.45712222,1342.7,1342.4,11.99336064]
[1673468796504,17.67924606,1342.7,1342.4,8.1957]
[1673468796718,25.12692606,1342.7,1342.4,8.1957]
[1673468797346,17.67924606,1342.7,1342.4,8.1957]
[1673468797560,28.61336726,1342.7,1342.4,8.1957]
[1673468797976,21.72438726,1342.7,1342.4,0.067]
[1673468798321,21.72438726,1342.7,1342.3,16.08124191]
[1673468798538,1.11408222,1342.6,1342.4,1.84799659]
[1673468799285,8.56239222,1342.6,1342.4,1.84799659]
[1673468800344,1.11408222,1342.6,1342.4,1.84799659]
[1673468800551,22.74728647,1342.7,1342.4,9.29729659]
[1673468800860,15.23522726,1342.7,1342.4,14.96564]
[1673468801075,22.68309726,1342.7,1342.4,14.96564]
[1673468801243,15.23522726,1342.7,1342.4,14.96564]
[1673468801665,11.74878606,1342.7,1342.4,14.96564]
[1673468801875,11.74878606,1342.7,1342.4,22.41498]
[1673468802103,11.74878606,1342.7,1342.4,14.96564]
[1673468802437,17.52677222,1342.7,1342.4,16.08010191]
[1673468803383,17.52680222,1342.7,1342.5,1.84789796]
[1673468803548,21.46376042,1342.7,1342.5,1.84789796]
[1673468804447,14.01594042,1342.7,1342.5,1.84789796]
[1673468804634,9.52028222,1342.7,1342.5,16.74529796]
[1673468804850,8.4062,1342.7,1342.5,22.41318]
[1673468805078,1.11408222,1342.7,1342.5,22.41318]
[1673468805270,2.78388606,1342.8,1342.5,22.41318]
[1673468805483,1.11408222,1342.7,1342.5,25.69357449]
[1673468806247,1.11408222,1342.7,1342.5,10.79601449]
[1673468806402,1.11408222,1342.7,1342.5,7.53115101]
[1673468806979,1.11408222,1342.7,1342.5,0.08253101]
[1673468807155,1.11408222,1342.7,1342.5,0.01753101]
[1673468807346,1.11408222,1342.7,1342.5,0.01553101]
[1673468807567,16.56817222,1342.7,1342.4,1.17863666]
[1673468807781,24.01588222,1342.7,1342.4,1.16663666]
[1673468808053,28.96930026,1342.7,1342.3,20.52141538]
[1673468808196,28.96930026,1342.7,1342.4,1.84796514]
[1673468808411,27.29949642,1342.7,1342.4,2.96242705]
[1673468809098,19.85212642,1342.7,1342.4,10.41134705]
[1673468809305,12.96281642,1342.7,1342.5,1.84796514]
[1673468809618,1.29628164,1342.6,1342.4,16.07661666]
[1673468809930,20.47520563,1342.7,1342.4,16.07661666]
[1673468810145,21.65421642,1342.7,1342.4,16.07661666]
[1673468810468,21.65421642,1342.7,1342.4,8.62755666]
[1673468810771,29.10207642,1342.7,1342.4,0.06417475]
[1673468810935,29.10207642,1342.7,1342.3,5.55776063]
[1673468810936,1.11408222,1342.6,1342.3,1.17863666]
[1673468811142,14.89756,1342.5,1342.3,0.04717475]
[1673468811373,22.34634,1342.5,1342.2,1.17864633]
[1673468811613,27.72725558,1342.5,1342.2,0.01000967]
[1673468811833,3.0,1342.4,1342.2,9.67e-06]
[1673468811982,13.15156222,1342.4,1342.2,9.67e-06]
[1673468812199,13.15156222,1342.4,1342.2,1.84825156]
[1673468812513,20.60120222,1342.4,1342.2,1.84825156]
[1673468813143,13.15156222,1342.4,1342.2,9.67e-06]
[1673468813349,5.70192222,1342.4,1342.2,9.29862871]
[1673468813596,0.06437921,1342.5,1342.4,1.97132937]
[1673468813936,1.67278222,1342.6,1342.4,1.97132937]
[1673468814086,3.0,1342.5,1342.4,1.97132937]
[1673468815160,3.5588,1342.5,1342.4,1.97132937]
[1673468816563,26.52386143,1342.6,1342.4,28.31414295]
[1673468816564,1.17846143,1342.6,1342.4,28.31414295]
[1673468816714,33.48388606,1342.8,1342.6,1.04435741]
[1673468817083,33.48388606,1342.8,1342.7,22.34304]
[1673468817084,0.066,1342.8,1342.7,22.34304]
[1673468817305,0.004,1342.8,1342.7,24.87465449]
[1673468817453,3.5586,1342.9,1342.7,24.87765449]
[1673468817664,3.5586,1342.9,1342.7,9.98229449]
[1673468817870,11.84488606,1343.0,1342.8,7.44712]
[1673468818078,3.34248606,1343.0,1342.8,0.06417475]
[1673468818339,2.5,1342.9,1342.7,9.98202449]
[1673468818546,2.5,1342.9,1342.8,0.99820245]
[1673468819080,6.40848606,1343.0,1342.8,8.44532245]
[1673468819236,6.34248606,1343.0,1342.8,8.5094972]
[1673468820596,6.34248606,1343.0,1342.8,23.4037372]
[1673468820597,3.34248606,1343.0,1342.8,23.4037372]
[1673468820823,1.67268222,1343.0,1342.8,23.4037372]
[1673468821460,1.67268222,1343.0,1342.9,2.34037372]
[1673468822382,1.67268222,1343.0,1342.9,9.78694372]
[1673468822596,1.67268222,1343.0,1342.9,2.40454847]
[1673468822866,4.67268222,1343.0,1342.9,2.34037372]
[1673468823033,4.67268222,1343.0,1342.8,15.9559872]
[1673468823494,6.34248606,1343.0,1342.8,15.9559872]
[1673468823861,6.34248606,1343.0,1342.8,23.4031072]
[1673468824334,4.67268222,1343.0,1342.8,23.4031072]
[1673468825012,1.67268222,1343.0,1342.8,23.4031072]
[1673468825217,1.67268222,1343.0,1342.9,2.34031072]
[1673468825432,1.67268222,1343.0,1342.9,7.44657]
[1673468825655,1.67268222,1343.0,1342.9,7.51074475]
[1673468826450,1.67468222,1343.0,1342.9,7.50874475]
[1673468826648,1.67268222,1343.0,1342.9,7.51074475]
[1673468826797,1.67268222,1343.0,1342.9,0.06417475]
[1673468827128,1.67268222,1343.0,1342.8,0.06417475]
[1673468827345,4.17268222,1343.0,1342.8,7.44707]
[1673468827573,4.17268222,1343.0,1342.8,7.51124475]
[1673468827745,5.84248606,1343.0,1342.8,7.51124475]
[1673468828427,4.17268222,1343.0,1342.8,7.51124475]
[1673468828587,13.28854606,1343.0,1342.8,0.06417475]
[1673468828797,11.61874222,1343.0,1342.7,24.87682449]
[1673468829011,13.28849606,1343.0,1342.7,2.53461449]
[1673468829324,13.28849606,1343.0,1342.7,7.44758]
[1673468829325,20.73450606,1343.0,1342.7,7.44758]
[1673468829650,20.73450606,1343.0,1342.7,7.51175475]
[1673468830330,1.11408222,1342.9,1342.7,0.06417475]
[1673468830523,16.00751222,1342.9,1342.6,1.04435741]
[1673468830710,16.00751222,1342.9,1342.6,9.55826352]
[1673468830921,16.00751222,1342.9,1342.6,9.62243827]
[1673468831158,8.56065222,1342.9,1342.6,24.51868827]
[1673468831484,27.39510606,1343.0,1342.6,31.96691827]
[1673468831678,27.32918606,1343.0,1342.6,31.96691827]
[1673468831886,19.88269606,1343.0,1342.7,3.19669183]
[1673468832097,19.88269606,1343.0,1342.7,10.64411183]
[1673468832311,19.88269606,1343.0,1342.7,10.70828658]
[1673468832636,18.21289222,1343.0,1342.7,10.70828658]
[1673468833163,33.10533222,1343.0,1342.7,3.26086658]
[1673468833373,2.0,1342.9,1342.6,12.39388204]
[1673468833540,7.44712,1342.8,1342.6,9.62243827]
[1673468834401,24.40656,1342.9,1342.6,9.62243827]
[1673468834600,24.34056,1342.9,1342.6,9.62243827]
[1673468836078,16.89361,1342.9,1342.6,9.62243827]
[1673468836404,16.89357,1342.9,1342.6,17.07045827]
[1673468837354,16.89357,1342.9,1342.6,9.62243827]
[1673468837840,16.89357,1342.9,1342.6,17.07055827]
[1673468838218,9.44667,1342.9,1342.6,17.07055827]
[1673468838388,9.44667,1342.9,1342.6,17.07050827]
[1673468838389,10.56065222,1342.9,1342.6,17.07050827]
[1673468838608,18.00722222,1342.9,1342.6,9.62243827]
[1673468839027,9.44657,1342.9,1342.6,17.07058827]
[1673468839237,18.00722222,1342.9,1342.6,9.62243827]
[1673468839449,10.56065222,1342.9,1342.6,17.07062827]
[1673468840822,10.56065222,1342.9,1342.6,9.62243827]
[1673468840823,18.00722222,1342.9,1342.6,9.62243827]
[1673468841163,25.45379222,1342.9,1342.6,9.62243827]
[1673468841352,27.12359606,1342.9,1342.6,5.82477763]
[1673468841676,10.56065222,1342.9,1342.6,16.00473216]
[1673468841839,3.11408222,1342.9,1342.6,23.45296216]
[1673468842517,2.0,1342.9,1342.6,23.45296216]
[1673468843572,37.50081606,1343.0,1342.6,23.45296216]
[1673468843894,4.11408222,1342.9,1342.6,23.45296216]
[1673468844065,4.11408222,1342.9,1342.6,16.00473216]
[1673468844481,36.8495757,1342.9,1342.6,1.10853216]
[1673468844697,36.8495757,1342.9,1342.6,1.04435741]
[1673468844698,1.11408222,1342.8,1342.6,1.04435741]
[1673468844924,14.89536,1342.7,1342.6,1.04435741]
[1673468845368,22.34304,1342.7,1342.6,1.04435741]
[1673468847251,14.89536,1342.7,1342.6,1.04435741]
[1673468847465,17.41464161,1342.7,1342.6,1.04435741]
[1673468849368,9.96696161,1342.7,1342.6,1.04435741]
[1673468849512,17.41464161,1342.7,1342.6,1.04435741]
[1673468850196,9.96696161,1342.7,1342.6,1.04435741]
[1673468850359,7.44768,1342.7,1342.6,1.04435741]
[1673468851118,10.29743606,1342.8,1342.6,1.04435741]
[1673468851332,2.78388606,1342.8,1342.6,1.04435741]
[1673468851565,1.11408222,1342.8,1342.6,1.04435741]
[1673468851744,16.00869222,1342.8,1342.6,1.04435741]
[1673468851931,19.60798612,1342.8,1342.5,7.51258475]
[1673468852365,1.11408222,1342.8,1342.5,14.96136475]
[1673468852690,1.11408222,1342.8,1342.5,22.41014475]
[1673468852871,1.11408222,1342.8,1342.5,25.18193141]
[1673468853349,8.56122222,1342.8,1342.5,17.73315141]
[1673468853663,2.78388606,1342.8,1342.5,22.41014475]
[1673468853982,2.78388606,1342.8,1342.5,29.48206374]
[1673468854365,1.11408222,1342.8,1342.5,29.48206374]
[1673468855288,2.78388606,1342.8,1342.5,29.48206374]
[1673468855498,1.11408222,1342.8,1342.5,30.59652565]
[1673468856466,1.11408222,1342.8,1342.7,7.44768]
[1673468856689,1.11408222,1342.8,1342.7,0.06417475]
[1673468856908,1.11464828,1342.8,1342.6,14.95993475]
[1673468857093,1.1146435,1342.8,1342.7,1.49599348]
[1673468857315,9.74117384,1342.9,1342.6,14.95993475]
[1673468857316,17.18794384,1342.9,1342.8,1.10861455]
[1673468857559,17.12394384,1342.9,1342.8,1.10861455]
[1673468857707,9.67517384,1342.9,1342.8,1.10861455]
[1673468857918,10.7898102,1342.9,1342.8,1.10861455]
[1673468858169,10.2312102,1342.9,1342.8,1.10861455]
[1673468858701,9.11657384,1342.9,1342.8,1.10861455]
[1673468859230,1.66980384,1342.9,1342.8,1.10861455]
[1673468859580,10.8335524,1343.0,1342.8,25.40541599]
[1673468859718,10.2589524,1343.0,1342.8,23.62210568]
[1673468860070,10.2089524,1343.0,1342.8,23.62210568]
[1673468861447,10.2089524,1343.0,1342.8,23.51124422]
[1673468863801,1.1147524,1343.0,1342.8,23.51124422]
[1673468864067,1.1167524,1343.0,1342.8,23.50924422]
[1673468864313,1.1147524,1343.0,1342.8,23.51124422]
[1673468865513,1.1147524,1343.0,1342.8,27.30890486]
[1673468865734,34.21798548,1343.1,1342.8,31.1731362]
[1673468865944,34.21798548,1343.1,1342.8,32.5021362]
[1673468865945,1.78218164,1343.1,1342.8,32.5021362]
[1673468866219,1.78218164,1343.1,1343.0,14.89202]
[1673468866433,1.78218164,1343.1,1343.0,14.95619475]
[1673468866434,0.10892924,1343.1,1343.0,14.95619475]
[1673468866905,0.10892924,1343.1,1343.0,22.40220475]
[1673468868237,0.10892924,1343.1,1343.0,14.95619475]
[1673468871266,0.10892924,1343.1,1343.0,30.88348293]
[1673468872315,1e-08,1343.1,1343.0,30.88348293]
[1673468877392,1e-08,1343.1,1343.0,23.43747293]
[1673468877638,1e-08,1343.1,1343.0,30.88348293]
[1673468877827,1e-08,1343.1,1343.0,23.43747293]
[1673468878014,1e-08,1343.1,1343.0,12.19380229]
[1673468878224,1e-08,1343.1,1343.0,19.63981229]
[1673468878905,1e-08,1343.1,1343.0,18.32081229]
[1673468879081,1e-08,1343.1,1343.0,0.06417475]
[1673468879318,1e-08,1343.1,1342.9,8.7731]
[1673468879319,1e-08,1343.1,1342.9,14.95680475]
[1673468879651,1e-08,1343.1,1343.0,7.44601]
[1673468879810,22.33638001,1343.1,1343.0,0.06417475]
[1673468880013,22.33638001,1343.1,1342.8,8.77888422]
[1673468880014,18.98248191,1343.1,1342.8,8.77888422]
[1673468880224,7.79959527,1343.1,1342.8,1.16988422]
[1673468880435,3.70803336,1343.0,1342.8,1.10570947]
[1673468880649,9.53539911,1343.1,1342.8,1.10570947]
[1673468880975,3.0,1343.0,1342.8,1.10570947]
[1673468881191,13.18221091,1343.0,1342.8,1.10570947]
[1673468881588,24.33636427,1343.0,1342.8,1.10570947]
[1673468881798,1.8876,1342.9,1342.8,1.10570947]
[1673468882054,10.4489224,1342.9,1342.8,1.10570947]
[1673468882330,19.22214,1342.9,1342.8,1.10570947]
[1673468882598,30.38226072,1342.9,1342.8,1.10570947]
[1673468883484,30.38426072,1342.9,1342.8,1.10570947]
[1673468883693,32.05206456,1342.9,1342.8,1.10570947]
[1673468883921,33.16369292,1342.9,1342.8,1.10570947]
[1673468889271,32.05206456,1342.9,1342.8,1.10570947]
[1673468890106,35.76009792,1342.9,1342.8,1.10570947]
[1673468891262,32.05206456,1342.9,1342.8,1.10570947]
[1673468891904,33.16426399,1342.9,1342.8,1.10570947]
[1673468892869,32.05206456,1342.9,1342.8,1.10570947]
[1673468893786,33.16429235,1342.9,1342.8,1.10570947]
[1673468893999,32.05206456,1342.9,1342.8,1.10321938]
[1673468894228,33.16425529,1342.9,1342.8,1.10321938]
[1673468896299,36.96191593,1342.9,1342.8,1.10321938]
[1673468896510,36.96152975,1342.9,1342.8,1.10321938]
[1673468899252,35.29172591,1342.9,1342.8,1.10321938]
[1673468899614,36.96152975,1342.9,1342.8,1.10321938]
[1673468900189,35.29172591,1342.9,1342.8,1.10321938]
[1673468901241,36.96152975,1342.9,1342.8,1.10321938]
[1673468901716,40.66956311,1342.9,1342.8,1.10321938]
[1673468901879,36.96152975,1342.9,1342.8,1.10321938]
[1673468902095,40.66956311,1342.9,1342.8,1.10321938]
[1673468902446,36.96152975,1342.9,1342.8,1.10321938]
[1673468902618,45.35875856,1342.9,1342.8,1.10321938]
[1673468902839,47.58468526,1342.9,1342.8,1.10321938]
[1673468903028,45.35875856,1342.9,1342.8,1.10321938]
[1673468903237,47.58468526,1342.9,1342.8,1.10321938]
[1673468903700,50.58468526,1342.9,1342.8,1.10321938]
[1673468903868,51.14328526,1342.9,1342.8,1.10321938]
[1673468906958,49.47348142,1342.9,1342.8,1.10321938]
[1673468909670,51.02864388,1342.9,1342.8,1.10321938]
[1673468910634,52.69615221,1342.9,1342.8,1.10321938]
[1673468911814,17.15662905,1342.9,1342.8,1.10321938]
[1673468912019,14.55474822,1342.9,1342.8,1.10321938]
[1673468912381,22.00131822,1342.9,1342.8,1.10321938]
[1673468913226,14.55674822,1342.9,1342.8,1.10321938]
[1673468913485,14.55474822,1342.9,1342.8,1.10321938]
[1673468914430,20.67231822,1342.9,1342.8,1.10321938]
[1673468914747,19.56064833,1342.9,1342.8,1.10321938]
[1673468915332,19.56064833,1342.9,1342.8,1.10111486]
[1673468916070,2.78060549,1342.9,1342.8,1.10111486]
[1673468916324,3.33920549,1342.9,1342.8,1.10111486]
[1673468916532,9.67267833,1342.9,1342.8,1.10111486]
[1673468917581,10.78687678,1342.9,1342.8,1.10111486]
[1673468917797,1.67279845,1342.9,1342.8,1.10111486]
[1673468918015,1.11419845,1342.9,1342.8,1.21122635]
[1673468918401,1.66750833,1342.9,1342.8,1.21122635]
[1673468919444,1.66750833,1342.9,1342.8,8.65834635]
[1673468919687,1.66750833,1342.9,1342.8,1.16528961]
[1673468919688,3.89343503,1342.9,1342.8,1.16528961]
[1673468919858,3.89343503,1342.9,1342.8,1.10111486]
[1673468920066,26.23314503,1342.9,1342.8,1.10111486]
[1673468920323,27.34506517,1342.9,1342.8,1.10111486]
[1673468920541,25.11913847,1342.9,1342.8,1.10111486]
[1673468920705,29.86902523,1342.9,1342.8,1.10111486]
[1673468921110,32.10008226,1342.9,1342.8,1.10111486]
[1673468921226,29.86902523,1342.9,1342.8,1.10111486]
[1673468921448,32.099976,1342.9,1342.8,1.10111486]
[1673468921691,29.86902523,1342.9,1342.8,1.10111486]
[1673468923154,51.8712399,1342.9,1342.8,1.10111486]
[1673468923341,52.4298399,1342.9,1342.8,1.10111486]
[1673468923552,53.30450761,1342.9,1342.8,1.10111486]
[1673468923782,53.53450761,1342.9,1342.8,1.10111486]
[1673468928469,7.44823,1342.6,1342.4,8.28067475]
[1673468928684,27.57867559,1342.5,1342.4,0.06417475]
[1673468928942,27.57867559,1342.5,1342.2,9.67e-06]
[1673468929158,7.44989,1342.3,1342.2,1.84832543]
[1673468929943,16.08038453,1342.4,1342.2,1.84832543]
[1673468930154,16.08038453,1342.4,1342.2,9.67e-06]
[1673468930155,23.46408453,1342.4,1342.2,9.67e-06]
[1673468930517,16.01438453,1342.4,1342.2,9.67e-06]
[1673468931467,8.56472453,1342.4,1342.2,9.67e-06]
[1673468931660,7.44949,1342.4,1342.2,1.84830085]
[1673468932061,1.11523453,1342.4,1342.2,4.39431985]
[1673468932391,1.18123453,1342.5,1342.2,24.89656867]
[1673468932611,1.17123453,1342.5,1342.2,26.02303058]
[1673468932938,1.11523453,1342.5,1342.2,26.07520533]
[1673468933148,1.11523453,1342.6,1342.4,22.34802]
[1673468933367,1.11523453,1342.6,1342.4,22.41219475]
[1673468934776,1.11523453,1342.6,1342.4,14.96285475]
[1673468936103,2.96420412,1342.7,1342.4,22.41219475]
[1673468936247,2.95220412,1342.7,1342.4,22.41219475]
[1673468936464,2.89820412,1342.7,1342.4,26.04954736]
[1673468940520,1.22534601,1342.7,1342.4,26.04954736]
[1673468942238,1.22534601,1342.7,1342.4,28.82167603]
[1673468942453,1.22534601,1342.7,1342.4,26.04954736]
[1673468943441,0.11011148,1342.7,1342.5,1.8478801]
[1673468943695,0.11011148,1342.7,1342.6,22.52947801]
[1673468943990,0.11011148,1342.7,1342.6,22.59365276]
[1673468945258,0.11011148,1342.7,1342.6,7.69719276]
[1673468945415,0.11011148,1342.7,1342.6,0.24896276]
[1673468945631,1.22534601,1342.7,1342.6,0.18478801]
[1673468946048,1.22534601,1342.7,1342.5,1.34568571]